bitfinex/quotes_BTCUSD_20230115
["timestamp","ask_amount","ask_price","bid_price","bid_amount"]
[1673762944399,0.14693727,20748.0,20747.0,0.47954431]
[1673762945684,0.003,20748.0,20747.0,0.47954431]
[1673762945904,0.003,20748.0,20747.0,0.80068831]
[1673762947147,0.003,20748.0,20747.0,1.48296845]
[1673762947394,0.003,20748.0,20747.0,2.04419862]
[1673762947676,0.003,20748.0,20747.0,2.18860212]
[1673762947927,0.003,20748.0,20747.0,1.62737195]
[1673762948189,0.003,20748.0,20747.0,2.12223561]
[1673762948438,0.003,20748.0,20747.0,2.26663911]
[1673762948969,0.00577227,20749.0,20747.0,2.25972194]
[1673762949267,0.00577227,20749.0,20748.0,0.215086]
[1673762949488,0.00577227,20749.0,20748.0,0.69706]
[1673762950728,0.00577227,20749.0,20748.0,0.73106]
[1673762950980,0.00577227,20749.0,20748.0,1.3539485]
[1673762951232,0.00577227,20749.0,20748.0,1.8359225]
[1673762951489,0.00577227,20749.0,20748.0,2.0821567]
[1673762953243,0.02704227,20749.0,20748.0,1.1388625]
[1673762953483,0.02704227,20749.0,20748.0,0.6568885]
[1673762954337,0.02704227,20749.0,20748.0,0.9780325]
[1673762954537,0.00577227,20749.0,20748.0,0.9780325]
[1673762954786,0.00577227,20749.0,20748.0,1.2348717]
[1673762955266,0.00577227,20749.0,20748.0,1.1287957]
[1673762955531,0.00577227,20749.0,20748.0,1.2348717]
[1673762955813,0.00577227,20749.0,20748.0,1.1287957]
[1673762956046,0.00577227,20749.0,20748.0,0.6119832]
[1673762956316,0.44477632,20751.0,20748.0,2.72662839]
[1673762956317,0.00576049,20751.0,20748.0,2.72662839]
[1673762956567,0.02310954,20749.0,20748.0,3.22547288]
[1673762956894,0.02310954,20749.0,20748.0,3.82549947]
[1673762957086,0.02310954,20749.0,20748.0,4.57287346]
[1673762957332,0.02310954,20749.0,20748.0,4.78931158]
[1673762957582,0.02310954,20749.0,20748.0,4.93351723]
[1673762957829,0.02310954,20749.0,20748.0,4.59951723]
[1673762958074,0.02310954,20749.0,20748.0,3.49247285]
[1673762958364,0.02310954,20749.0,20748.0,2.56434693]
[1673762958854,0.02310954,20749.0,20748.0,2.86434693]
[1673762959638,0.02310954,20749.0,20748.0,2.95634693]
[1673762960163,0.02310954,20749.0,20748.0,3.17278505]
[1673762960422,0.02310954,20749.0,20748.0,3.88446917]
[1673762960724,0.02310954,20749.0,20748.0,4.99149034]
[1673762960994,0.02310954,20749.0,20748.0,3.88442626]
[1673762961238,0.02310954,20749.0,20748.0,4.02859938]
[1673762961493,0.02310954,20749.0,20748.0,3.93655027]
[1673762961746,0.02310954,20749.0,20748.0,4.02855027]
[1673762962554,0.02310954,20749.0,20748.0,4.1726841]
[1673762962799,0.02310954,20749.0,20748.0,4.02855027]
[1673762963063,0.02310954,20749.0,20748.0,4.31583176]
[1673762963329,0.00576049,20751.0,20749.0,0.13575289]
[1673762963592,0.00576049,20751.0,20750.0,1.760827]
[1673762963798,0.00576049,20751.0,20750.0,2.66785001]
[1673762964304,0.00576049,20751.0,20750.0,2.53802869]
[1673762964553,0.00576049,20751.0,20750.0,2.97265993]
[1673762964811,0.00576049,20751.0,20750.0,2.63002869]
[1673762965524,0.00576049,20751.0,20750.0,2.53802869]
[1673762965774,0.00576049,20751.0,20750.0,2.97265993]
[1673762966017,0.00576049,20751.0,20750.0,3.06465993]
[1673762966516,0.00576049,20751.0,20750.0,2.96465993]
[1673762966734,0.00576049,20751.0,20750.0,2.53002869]
[1673762967496,0.00576049,20751.0,20750.0,2.96465993]
[1673762967762,0.00576049,20751.0,20750.0,3.10873524]
[1673762968014,0.00576049,20751.0,20750.0,2.96465993]
[1673762968492,0.00576049,20751.0,20750.0,2.77032695]
[1673762968984,0.00576049,20751.0,20750.0,2.23002869]
[1673762969241,0.00576049,20751.0,20750.0,2.86608469]
[1673762972363,0.00576049,20751.0,20750.0,1.906956]
[1673762972558,0.02703049,20751.0,20750.0,0.943102]
[1673762972813,0.02703049,20751.0,20750.0,0.728056]
[1673762974116,0.02703049,20751.0,20750.0,0.636056]
[1673762974387,0.02803049,20751.0,20750.0,0.720056]
[1673762974653,0.50993449,20751.0,20750.0,0.720056]
[1673762975176,0.50993449,20751.0,20750.0,0.084]
[1673762975425,0.52584689,20751.0,20750.0,0.084]
[1673762979179,0.50457689,20751.0,20750.0,0.084]
[1673762982880,0.02267289,20751.0,20750.0,0.084]
[1673762986901,0.04394289,20751.0,20750.0,0.084]
[1673762988401,0.04394289,20751.0,20750.0,0.064]
[1673762995213,0.02803049,20751.0,20750.0,0.064]
[1673762995972,0.02795305,20751.0,20750.0,0.3455679]
[1673762996452,0.00668305,20751.0,20750.0,0.3455679]
[1673762997465,0.00668305,20751.0,20750.0,0.88499697]
[1673762997712,0.00668305,20751.0,20750.0,1.20614097]
[1673762998703,0.00668305,20751.0,20750.0,1.68806797]
[1673762999722,0.00668305,20751.0,20750.0,2.16999497]
[1673763000734,0.00631662,20752.0,20751.0,0.51666726]
[1673763000993,0.00631662,20752.0,20751.0,0.94196805]
[1673763001252,0.00631662,20752.0,20751.0,1.90577605]
[1673763001779,0.00631662,20752.0,20751.0,2.43638885]
[1673763002027,0.00631662,20752.0,20751.0,1.90577605]
[1673763002271,0.00831662,20752.0,20751.0,1.87277605]
[1673763002515,0.00831662,20752.0,20751.0,1.97198483]
[1673763002764,0.00831662,20752.0,20751.0,2.40661607]
[1673763003004,0.00831662,20752.0,20751.0,1.97198483]
[1673763013534,0.00831662,20752.0,20751.0,0.81584002]
[1673763014030,0.00831662,20752.0,20751.0,0.067]
[1673763014522,0.17177729,20752.0,20751.0,0.067]
[1673763015512,0.19304729,20752.0,20751.0,0.067]
[1673763015765,0.17352389,20752.0,20751.0,0.067]
[1673763016008,0.02958662,20752.0,20751.0,0.73045017]
[1673763016770,0.17152389,20752.0,20751.0,0.66345017]
[1673763017012,0.17352389,20752.0,20751.0,0.69545017]
[1673763017270,0.02958662,20752.0,20751.0,0.69545017]
[1673763019289,0.17352389,20752.0,20751.0,0.69545017]
[1673763019781,0.02958662,20752.0,20751.0,0.69545017]
[1673763020029,0.17352389,20752.0,20751.0,0.69545017]
[1673763020776,0.17352389,20752.0,20751.0,0.032]
[1673763021021,0.1898988,20752.0,20751.0,0.032]
[1673763023982,0.40597736,20752.0,20751.0,0.032]
[1673763024239,0.17352389,20752.0,20751.0,0.032]
[1673763027751,0.15225389,20752.0,20751.0,0.71537492]
[1673763027994,0.00831662,20752.0,20751.0,0.71537492]
[1673763032697,0.00831662,20752.0,20751.0,0.54117641]
[1673763032986,0.15225389,20752.0,20751.0,0.54117641]
[1673763034746,0.00831662,20752.0,20751.0,0.54117641]
[1673763034995,0.15225389,20752.0,20751.0,0.54117641]
[1673763037015,0.36833245,20752.0,20751.0,0.54117641]
[1673763038271,0.22439518,20752.0,20751.0,0.03193014]
[1673763039282,0.51272101,20752.0,20751.0,0.03193014]
[1673763039539,0.22439518,20752.0,20751.0,0.03193014]
[1673763039834,0.51272101,20752.0,20751.0,0.03193014]
[1673763040823,0.53399101,20752.0,20751.0,0.03193014]
[1673763041300,0.91868171,20752.0,20751.0,0.03193014]
[1673763041549,2.06968553,20752.0,20751.0,0.03193014]
[1673763041800,2.47195869,20752.0,20751.0,0.03193014]
[1673763042804,2.03825167,20752.0,20750.0,0.70138055]
[1673763043059,0.6019732,20751.0,20750.0,0.70138055]
[1673763043307,1.5657812,20751.0,20750.0,0.70138055]
[1673763044319,1.5870512,20751.0,20750.0,0.70138055]
[1673763045076,2.05223644,20751.0,20750.0,0.70638055]
[1673763045333,1.6200512,20751.0,20750.0,0.70638055]
[1673763045584,2.36663361,20751.0,20750.0,0.70638055]
[1673763046088,1.93444837,20751.0,20750.0,0.70638055]
[1673763046851,1.6200512,20751.0,20750.0,0.70638055]
[1673763047859,1.5200512,20751.0,20750.0,0.70638055]
[1673763049357,1.8995927,20751.0,20750.0,0.70638055]
[1673763049604,1.87954605,20751.0,20750.0,0.70638055]
[1673763050100,1.89554574,20751.0,20750.0,0.70638055]
[1673763050349,1.87954605,20751.0,20750.0,0.70638055]
[1673763051512,1.89456564,20751.0,20750.0,0.70638055]
[1673763051738,1.87954605,20751.0,20750.0,0.70638055]
[1673763052004,1.8950908,20751.0,20750.0,0.70638055]
[1673763052252,1.895299,20751.0,20750.0,0.70638055]
[1673763052502,1.87954605,20751.0,20750.0,0.70638055]
[1673763052758,1.5200512,20751.0,20750.0,0.70638055]
[1673763053533,1.89894432,20751.0,20750.0,0.70638055]
[1673763054056,1.87955623,20751.0,20750.0,0.70638055]
[1673763054553,1.89531212,20751.0,20750.0,0.70638055]
[1673763054817,1.87955725,20751.0,20750.0,0.70638055]
[1673763055066,1.89881121,20751.0,20750.0,0.70638055]
[1673763056848,1.59881121,20751.0,20750.0,0.70638055]
[1673763057083,1.8862989,20751.0,20750.0,0.70638055]
[1673763057335,1.52679285,20751.0,20750.0,0.70638055]
[1673763057600,1.70693663,20751.0,20750.0,0.70638055]
[1673763060123,1.68566663,20751.0,20750.0,0.70638055]
[1673763060380,1.70693663,20751.0,20750.0,0.70638055]
[1673763061160,1.49131965,20751.0,20750.0,0.70626148]
[1673763061385,1.52669907,20751.0,20750.0,0.70626148]
[1673763061874,1.49131965,20751.0,20750.0,0.70626148]
[1673763062139,1.88620606,20751.0,20750.0,0.70626148]
[1673763062397,1.49131965,20751.0,20750.0,0.70626148]
[1673763062651,1.70698152,20751.0,20750.0,0.70626148]
[1673763063666,1.49131965,20751.0,20750.0,0.70626148]
[1673763063918,1.70698489,20751.0,20750.0,0.70626148]
[1673763065479,1.49131965,20751.0,20750.0,0.70626148]
[1673763066257,1.47004965,20751.0,20750.0,0.70626148]
[1673763066512,1.70695491,20751.0,20750.0,0.70626148]
[1673763066765,1.41231965,20751.0,20750.0,0.70626148]
[1673763067006,1.80720194,20751.0,20750.0,0.70626148]
[1673763068270,1.41231965,20751.0,20750.0,0.70626148]
[1673763068550,1.62797656,20751.0,20750.0,0.70626148]
[1673763068806,0.17677811,20751.0,20750.0,1.3650787]
[1673763069058,0.033,20751.0,20750.0,1.3650787]
[1673763070080,0.033,20751.0,20750.0,1.23547344]
[1673763072071,0.17677811,20751.0,20750.0,1.23547344]
[1673763072593,0.033,20751.0,20750.0,1.23547344]
[1673763073097,0.17677811,20751.0,20750.0,1.23547344]
[1673763073373,0.17177811,20751.0,20750.0,1.23547344]
[1673763073611,0.17177811,20751.0,20750.0,1.45068121]
[1673763074584,0.028,20751.0,20750.0,1.45068121]
[1673763075896,0.17177811,20751.0,20750.0,1.45068121]
[1673763076421,0.17177811,20751.0,20750.0,1.23547344]
[1673763077882,0.38743502,20751.0,20750.0,1.23547344]
[1673763079091,0.24365691,20751.0,20750.0,1.23547344]
[1673763079326,0.5311446,20751.0,20750.0,1.23547344]
[1673763079841,0.24365691,20751.0,20750.0,1.23547344]
[1673763080342,0.5311446,20751.0,20750.0,1.23547344]
[1673763080586,0.24365691,20751.0,20750.0,1.23547344]
[1673763081360,0.38754606,20751.0,20750.0,1.23547344]
[1673763083079,0.38754606,20751.0,20750.0,1.35902078]
[1673763086348,0.38754606,20751.0,20750.0,1.23547344]
[1673763088581,0.24365691,20751.0,20750.0,0.70626148]
[1673763088834,0.38763452,20751.0,20750.0,0.70626148]
[1673763089382,0.5311446,20751.0,20750.0,0.70626148]
[1673763091397,0.53106949,20751.0,20750.0,0.70626148]
[1673763095833,0.31541258,20751.0,20750.0,0.70626148]
[1673763096586,0.71036502,20751.0,20750.0,0.70626148]
[1673763096837,0.35085916,20751.0,20750.0,0.70626148]
[1673763097316,0.71036521,20751.0,20750.0,0.70626148]
[1673763097562,0.7303343,20751.0,20750.0,0.70626148]
[1673763099785,0.44284661,20751.0,20750.0,0.70626148]
[1673763100038,0.73102213,20751.0,20750.0,0.70626148]
[1673763101026,0.73103661,20751.0,20750.0,0.70626148]
[1673763103735,0.44284661,20751.0,20750.0,0.70626148]
[1673763107705,0.08334056,20751.0,20750.0,0.70626148]
[1673763107926,0.44380515,20751.0,20750.0,0.70626148]
[1673763109177,0.42383606,20751.0,20750.0,0.87136398]
[1673763109396,0.71223249,20751.0,20750.0,0.87136398]
[1673763109884,0.71223249,20751.0,20750.0,0.70626148]
[1673763112429,0.42383606,20751.0,20750.0,0.70626148]
[1673763112979,0.71222397,20751.0,20750.0,1.22509858]
[1673763113241,0.53260837,20751.0,20750.0,1.22509858]
[1673763113487,0.3163128,20751.0,20750.0,1.45367609]
[1673763113739,0.53261046,20751.0,20750.0,1.45367609]
[1673763114769,0.24422255,20751.0,20750.0,1.45367609]
[1673763115019,0.388418,20751.0,20750.0,1.45367609]
[1673763115526,0.24422255,20751.0,20750.0,1.45358157]
[1673763116035,0.24422255,20751.0,20750.0,1.22500406]
[1673763116285,0.53261046,20751.0,20750.0,1.22500406]
[1673763116790,0.5325898,20751.0,20750.0,1.22500406]
[1673763117045,0.3163128,20751.0,20750.0,1.22500406]
[1673763117304,0.71233184,20751.0,20750.0,1.22500406]
[1673763118283,0.42394393,20751.0,20750.0,1.22500406]
[1673763118533,0.71239343,20751.0,20750.0,1.22500406]
[1673763119578,0.71240818,20751.0,20750.0,1.22500406]
[1673763120407,0.71241027,20751.0,20750.0,1.22500406]
[1673763123471,0.71241027,20751.0,20750.0,1.43916319]
[1673763124496,0.35194568,20751.0,20750.0,1.43916319]
[1673763124766,0.31637439,20751.0,20750.0,1.43916319]
[1673763125031,0.53282385,20751.0,20750.0,1.43916319]
[1673763125285,0.24437435,20751.0,20750.0,1.43916319]
[1673763126564,0.38867646,20751.0,20750.0,1.43916319]
[1673763127830,0.172227,20751.0,20750.0,1.43916319]
[1673763128394,0.38867646,20751.0,20750.0,1.43916319]
[1673763128642,0.172227,20751.0,20750.0,1.43916319]
[1673763128896,0.38867646,20751.0,20750.0,1.43916319]
[1673763129931,0.172227,20751.0,20750.0,1.43916319]
[1673763133043,0.14430211,20751.0,20750.0,1.43416319]
[1673763133320,0.17030211,20751.0,20750.0,1.43616319]
[1673763133561,0.14430211,20751.0,20750.0,1.43416319]
[1673763133838,0.14630211,20751.0,20750.0,1.46816319]
[1673763140767,0.14630211,20751.0,20750.0,0.73504915]
[1673763140768,0.2904495,20751.0,20750.0,0.73504915]
[1673763141021,0.52685335,20751.0,20750.0,0.73504915]
[1673763141268,0.52685169,20751.0,20750.0,0.73504915]
[1673763143013,0.21834313,20751.0,20750.0,0.73504915]
[1673763143260,0.36262202,20751.0,20750.0,0.73504915]
[1673763144506,0.36262202,20751.0,20750.0,0.72504915]
[1673763145516,0.36262202,20751.0,20750.0,0.89472756]
[1673763145765,0.36262428,20751.0,20750.0,0.89472756]
[1673763145994,0.21834313,20751.0,20750.0,0.89472756]
[1673763146245,0.36263227,20751.0,20750.0,0.89472756]
[1673763147793,0.21834313,20751.0,20750.0,0.72504915]
[1673763151061,0.50679263,20751.0,20750.0,0.72504915]
[1673763151300,0.21834313,20751.0,20750.0,0.72504915]
[1673763151561,0.36261334,20751.0,20750.0,0.72504915]
[1673763151815,0.50679263,20751.0,20750.0,0.72504915]
[1673763154210,0.70331234,20751.0,20750.0,0.72504915]
[1673763155456,0.3428714,20751.0,20750.0,0.72504915]
[1673763155714,0.30625525,20751.0,20750.0,0.72504915]
[1673763156229,0.34287051,20751.0,20750.0,0.72504915]
[1673763156478,0.30625525,20751.0,20750.0,0.72504915]
[1673763157313,0.70412868,20751.0,20750.0,0.72504915]
[1673763157538,0.70412868,20751.0,20750.0,0.034]
[1673763157801,0.70413109,20751.0,20750.0,0.034]
[1673763158860,1.20730509,20751.0,20750.0,0.034]
[1673763159079,0.91885559,20751.0,20750.0,0.034]
[1673763159297,0.89758559,20751.0,20750.0,0.034]
[1673763160034,1.18608891,20751.0,20750.0,0.034]
[1673763160283,0.89758559,20751.0,20750.0,0.034]
[1673763160789,1.18608996,20751.0,20750.0,0.034]
[1673763161053,0.89758559,20751.0,20750.0,0.034]
[1673763165461,0.89758559,20751.0,20750.0,0.03390506]
[1673763165710,0.91885559,20751.0,20750.0,0.03390506]
[1673763168330,0.89758559,20751.0,20750.0,0.03390506]
[1673763170138,0.91885559,20751.0,20750.0,0.03390506]
[1673763170429,0.92735559,20751.0,20750.0,0.03390506]
[1673763170676,1.048795,20751.0,20750.0,0.03390506]
[1673763171667,1.40725873,20751.0,20748.0,0.47650066]
[1673763171913,1.40725873,20751.0,20750.0,0.005]
[1673763171914,1.39584748,20751.0,20750.0,0.005]
[1673763172140,1.40715366,20751.0,20748.0,0.47650066]
[1673763172383,1.39584748,20751.0,20750.0,0.005]
[1673763172640,1.40715371,20751.0,20748.0,0.47650066]
[1673763172863,0.14417664,20749.0,20748.0,0.48150066]
[1673763173112,0.36044159,20749.0,20748.0,0.47650066]
[1673763173621,0.36044159,20749.0,20747.0,0.64593576]
[1673763174149,0.14417664,20748.0,20746.0,1.17243903]
[1673763174658,0.14417664,20748.0,20746.0,0.59393903]
[1673763174902,0.14417664,20747.0,20744.0,0.62612331]
[1673763175156,0.14417664,20747.0,20745.0,0.66330708]
[1673763175157,0.30676084,20747.0,20745.0,0.66330708]
[1673763175423,0.52302579,20747.0,20743.0,0.84226509]
[1673763175671,0.52302579,20747.0,20742.0,0.01176016]
[1673763175672,0.02127,20744.0,20742.0,0.01176016]
[1673763175941,0.1625842,20743.0,20742.0,0.01176016]
[1673763176223,1.28807858,20744.0,20742.0,0.01176016]
[1673763176452,0.86378759,20744.0,20742.0,0.01176016]
[1673763177499,0.64752264,20744.0,20743.0,0.06]
[1673763177723,0.503346,20744.0,20742.0,0.01176016]
[1673763177968,0.503346,20744.0,20742.0,0.01676016]
[1673763177969,0.67952264,20744.0,20742.0,0.01676016]
[1673763178518,1.12958964,20744.0,20742.0,0.01176016]
[1673763178779,1.16158964,20744.0,20742.0,0.01676016]
[1673763179309,0.03808501,20743.0,20742.0,0.01676016]
[1673763179558,1.00226501,20743.0,20742.0,0.01676016]
[1673763180366,1.00226501,20743.0,20742.0,0.01176016]
[1673763180590,1.03426501,20743.0,20742.0,0.01376016]
[1673763181374,1.31745,20743.0,20742.0,0.01376016]
[1673763181635,1.71592735,20743.0,20742.0,0.01376016]
[1673763181875,2.28542964,20743.0,20742.0,0.01376016]
[1673763183129,2.25342964,20743.0,20742.0,0.01176016]
[1673763183392,2.55566541,20743.0,20742.0,0.01476016]
[1673763183645,2.55566541,20743.0,20742.0,0.01176016]
[1673763183646,2.4916386,20743.0,20742.0,0.01176016]
[1673763183900,2.5546386,20743.0,20742.0,0.01476016]
[1673763184675,1.7454903,20743.0,20742.0,0.01476016]
[1673763184950,1.54577417,20743.0,20742.0,0.01476016]
[1673763185530,1.40217235,20743.0,20742.0,0.01476016]
[1673763187810,1.10217235,20743.0,20742.0,0.01476016]
[1673763188057,1.10217235,20743.0,20742.0,0.01469561]
[1673763188566,1.40217235,20743.0,20742.0,0.01469561]
[1673763189077,1.10217235,20743.0,20742.0,0.01469561]
[1673763189328,1.40217235,20743.0,20742.0,0.01469561]
[1673763189581,1.08090235,20743.0,20742.0,0.01469561]
[1673763199334,1.29921648,20743.0,20742.0,0.01469561]
[1673763199586,1.59921648,20743.0,20742.0,0.01469561]
[1673763200709,1.53621648,20743.0,20742.0,0.01169561]
[1673763200894,1.62028362,20743.0,20742.0,0.01469561]
[1673763201135,1.59921648,20743.0,20742.0,0.01469561]
[1673763201351,1.36521576,20743.0,20742.0,0.01469561]
[1673763201890,1.38538127,20743.0,20742.0,0.01469561]
[1673763202142,1.32238127,20743.0,20742.0,0.01169561]
[1673763202407,1.36521576,20743.0,20742.0,0.01469561]
[1673763202652,1.3836525,20743.0,20742.0,0.01469561]
[1673763202907,1.67802342,20743.0,20742.0,0.01469561]
[1673763203415,1.69430649,20743.0,20742.0,0.01469561]
[1673763203928,1.38149883,20743.0,20742.0,0.01469561]
[1673763206807,1.38149883,20743.0,20742.0,0.01456074]
[1673763209306,1.52510065,20743.0,20742.0,0.01456074]
[1673763210344,1.22510065,20743.0,20742.0,0.01456074]
[1673763210597,1.08149883,20743.0,20742.0,0.01456074]
[1673763211641,1.22510065,20743.0,20742.0,0.01456074]
[1673763212160,1.74050337,20743.0,20742.0,0.01456074]
[1673763212436,1.76177337,20743.0,20742.0,0.01456074]
[1673763212690,1.61817155,20743.0,20742.0,0.01456074]
[1673763212942,1.90652482,20743.0,20742.0,0.01456074]
[1673763213716,1.80021107,20743.0,20742.0,0.01456074]
[1673763214214,2.08794936,20743.0,20742.0,0.01456074]
[1673763214744,2.08795233,20743.0,20742.0,0.01456074]
[1673763215219,1.80021107,20743.0,20742.0,0.01456074]
[1673763215716,1.43974734,20743.0,20742.0,0.01456074]
[1673763215959,1.13974734,20743.0,20742.0,0.01456074]
[1673763216216,1.49975468,20743.0,20742.0,0.01456074]
[1673763217217,1.47848468,20743.0,20742.0,0.01456074]
[1673763217463,1.7665122,20743.0,20742.0,0.01456074]
[1673763217717,1.76660023,20743.0,20742.0,0.01456074]
[1673763218212,1.47848468,20743.0,20742.0,0.01456074]
[1673763218758,1.76658847,20743.0,20742.0,0.01456074]
[1673763219484,1.76658517,20743.0,20742.0,0.01456074]
[1673763219749,1.47848468,20743.0,20742.0,0.01456074]
[1673763220487,1.11847734,20743.0,20742.0,0.01456074]
[1673763220989,1.47869556,20743.0,20742.0,0.01456074]
[1673763221475,1.11847734,20743.0,20742.0,0.01456074]
[1673763223976,1.47872144,20743.0,20742.0,0.01456074]
[1673763224230,0.99663144,20743.0,20742.0,0.07898276]
[1673763224477,0.99663144,20743.0,20742.0,0.01456074]
[1673763225499,0.63638734,20743.0,20742.0,0.01456074]
[1673763228005,0.65765734,20743.0,20742.0,0.01456074]
[1673763228804,0.95765734,20743.0,20742.0,0.01456074]
[1673763229319,0.65765734,20743.0,20742.0,0.01456074]
[1673763229566,1.43974734,20743.0,20742.0,0.01456074]
[1673763229814,1.13974734,20743.0,20742.0,0.01456074]
[1673763230096,1.43974734,20743.0,20742.0,0.01456074]
[1673763230828,1.13974734,20743.0,20742.0,0.01456074]
[1673763231585,1.13974734,20743.0,20742.0,0.01445267]
[1673763231837,1.57193258,20743.0,20742.0,0.01445267]
[1673763232099,1.13974734,20743.0,20742.0,0.01445267]
[1673763232362,1.43974734,20743.0,20742.0,0.01445267]
[1673763232847,1.87193258,20743.0,20742.0,0.01445267]
[1673763234590,1.57193258,20743.0,20742.0,0.01445267]
[1673763234844,1.87193258,20743.0,20742.0,0.01445267]
[1673763241254,1.57193258,20743.0,20742.0,0.01445267]
[1673763242026,1.13974734,20743.0,20742.0,0.01445267]
[1673763243294,1.87193258,20743.0,20742.0,0.01445267]
[1673763243569,1.13974734,20743.0,20742.0,0.01445267]
[1673763244099,1.11847734,20743.0,20742.0,0.01445267]
[1673763244345,1.47876816,20743.0,20742.0,0.01445267]
[1673763246858,1.11847734,20743.0,20742.0,0.01445267]
[1673763247093,1.47875479,20743.0,20742.0,0.01445267]
[1673763247606,1.47873955,20743.0,20742.0,0.01445267]
[1673763249601,0.78648275,20743.0,20742.0,0.01445267]
[1673763249844,0.78648275,20743.0,20742.0,0.59828503]
[1673763250590,0.38924203,20743.0,20742.0,0.59828503]
[1673763250849,0.78756367,20743.0,20742.0,0.59828503]
[1673763251410,0.38924203,20743.0,20742.0,0.59828503]
[1673763251623,0.38924203,20743.0,20742.0,0.91942903]
[1673763251624,0.60538719,20743.0,20742.0,0.91942903]
[1673763251876,0.42729636,20743.0,20742.0,0.59828503]
[1673763252123,0.60537964,20743.0,20742.0,0.59828503]
[1673763252667,0.38924203,20743.0,20742.0,0.59828503]
[1673763253143,0.38924203,20743.0,20742.0,0.54710105]
[1673763253414,0.42772715,20743.0,20742.0,0.54710105]
[1673763253944,0.78798936,20743.0,20742.0,0.54710105]
[1673763255170,0.78798936,20743.0,20742.0,0.54703245]
[1673763255938,0.60536686,20743.0,20742.0,0.54703245]
[1673763256189,0.60536686,20743.0,20742.0,0.69941105]
[1673763256461,0.31716059,20743.0,20742.0,0.69941105]
[1673763258955,0.31716059,20743.0,20742.0,0.54703245]
[1673763259206,0.46122289,20743.0,20742.0,0.54703245]
[1673763259999,0.31716059,20743.0,20742.0,0.54703245]
[1673763260522,0.25416059,20743.0,20742.0,0.54403245]
[1673763260770,0.45520082,20743.0,20742.0,0.54703245]
[1673763263051,0.31116059,20743.0,20742.0,0.54703245]
[1673763263291,0.45523603,20743.0,20742.0,0.54703245]
[1673763264338,0.30266059,20743.0,20742.0,0.07033307]
[1673763264577,0.2306087,20743.0,20742.0,0.07033307]
[1673763264837,0.2306087,20743.0,20742.0,0.01438407]
[1673763268753,0.44673353,20743.0,20742.0,0.01438407]
[1673763271944,0.59086686,20743.0,20742.0,0.01438407]
[1673763272985,2.06676258,20743.0,20742.0,0.01438407]
[1673763273540,1.4182941,20743.0,20742.0,0.01438407]
[1673763273793,1.7784895,20743.0,20742.0,0.01438407]
[1673763274051,1.77849039,20743.0,20742.0,0.01438407]
[1673763274848,1.47849039,20743.0,20742.0,0.01438407]
[1673763275103,1.42149039,20743.0,20742.0,0.01138407]
[1673763275598,1.0612941,20743.0,20742.0,0.01138407]
[1673763275842,1.1492941,20743.0,20742.0,0.01138407]
[1673763276139,1.4492941,20743.0,20742.0,0.01138407]
[1673763276607,1.5095472,20743.0,20742.0,0.01138407]
[1673763278129,1.1492941,20743.0,20742.0,0.01138407]
[1673763278374,1.4492941,20743.0,20742.0,0.01138407]
[1673763278865,1.1492941,20743.0,20742.0,0.01138407]
[1673763279114,1.4492941,20743.0,20742.0,0.01138407]
[1673763279360,1.1492941,20743.0,20742.0,0.01138407]
[1673763279610,1.4492941,20743.0,20742.0,0.01138407]
[1673763280145,1.4492941,20743.0,20742.0,0.01130067]
[1673763280404,1.1492941,20743.0,20742.0,0.01130067]
[1673763280924,1.4492941,20743.0,20742.0,0.01130067]
[1673763282513,1.4705641,20743.0,20742.0,0.01130067]
[1673763283021,1.1705641,20743.0,20742.0,0.01130067]
[1673763284337,1.4705641,20743.0,20742.0,0.01130067]
[1673763284932,1.1705641,20743.0,20742.0,0.01130067]
[1673763285110,1.15084889,20743.0,20742.0,0.01130067]
[1673763285363,2.09151766,20743.0,20742.0,0.01130067]
[1673763286128,1.65933242,20743.0,20742.0,0.01130067]
[1673763286642,1.45084889,20743.0,20742.0,0.01130067]
[1673763287159,1.8831557,20743.0,20742.0,0.01130067]
[1673763289205,1.9029491,20743.0,20742.0,0.01130067]
[1673763289465,1.8831557,20743.0,20742.0,0.01130067]
[1673763290416,1.46845164,20743.0,20742.0,0.01130067]
[1673763291926,1.16845164,20743.0,20742.0,0.01130067]
[1673763292183,1.46845164,20743.0,20742.0,0.01130067]
[1673763296254,1.59755164,20743.0,20742.0,0.01130067]
[1673763297598,2.33725677,20743.0,20742.0,0.01130067]
[1673763297778,2.3368255,20743.0,20742.0,0.01130067]
[1673763298052,1.90494996,20743.0,20742.0,0.01130067]
[1673763298304,2.33682088,20743.0,20742.0,0.01130067]
[1673763298804,1.90494996,20743.0,20742.0,0.01130067]
[1673763299299,2.33686074,20743.0,20742.0,0.01130067]
[1673763299793,1.90494996,20743.0,20742.0,0.01130067]
[1673763300298,2.33686379,20743.0,20742.0,0.01130067]
[1673763300555,2.9478627,20743.0,20742.0,0.01000984]
[1673763300809,2.6780831,20743.0,20742.0,0.01000984]
[1673763301054,2.51200054,20743.0,20742.0,0.01000984]
[1673763301328,2.42400054,20743.0,20742.0,0.01000984]
[1673763301589,2.51500054,20743.0,20742.0,0.01000984]
[1673763301836,3.00081244,20743.0,20742.0,0.01000984]
[1673763302873,2.90981244,20743.0,20742.0,0.01000984]
[1673763303118,3.00081244,20743.0,20742.0,0.01000984]
[1673763303369,2.5900831,20743.0,20742.0,0.01000984]
[1673763303626,2.51500054,20743.0,20742.0,0.01000984]
[1673763304634,3.00056001,20743.0,20742.0,0.01000984]
[1673763306906,2.57396603,20743.0,20742.0,0.01000984]
[1673763307750,1.64945299,20743.0,20742.0,0.01000984]
[1673763308446,1.7307504,20743.0,20742.0,0.01000984]
[1673763309212,1.29909639,20743.0,20742.0,0.01000984]
[1673763309474,1.73080538,20743.0,20742.0,0.01000984]
[1673763309725,2.03080538,20743.0,20742.0,0.01000984]
[1673763309973,1.59909639,20743.0,20742.0,0.01000984]
[1673763310979,2.03081149,20743.0,20742.0,0.01000984]
[1673763311244,1.59909639,20743.0,20742.0,0.01000984]
[1673763311735,2.03088836,20743.0,20742.0,0.01000984]
[1673763313500,1.90178836,20743.0,20742.0,0.01000984]
[1673763319350,1.16999639,20743.0,20742.0,0.01000984]
[1673763320134,1.07899639,20743.0,20742.0,0.01000984]
[1673763320411,1.16199639,20743.0,20742.0,0.01100984]
[1673763320679,1.07884775,20743.0,20742.0,0.01000984]
[1673763320919,1.46184775,20743.0,20742.0,0.01100984]
[1673763321175,1.14570025,20743.0,20742.0,0.01100984]
[1673763321421,1.14570025,20743.0,20742.0,0.62206659]
[1673763321422,0.80868616,20743.0,20742.0,0.62206659]
[1673763321688,0.80018616,20743.0,20742.0,0.62206659]
[1673763321991,0.80018616,20743.0,20742.0,0.94321059]
[1673763322230,0.80018616,20743.0,20742.0,0.62206659]
[1673763322490,0.61669478,20743.0,20742.0,0.62206659]
[1673763323105,0.62519478,20743.0,20742.0,0.50578504]
[1673763323249,0.40908086,20743.0,20742.0,0.50578504]
[1673763323748,0.62522496,20743.0,20742.0,0.50578504]
[1673763324504,0.33703122,20743.0,20742.0,0.50578504]
[1673763325012,0.33703122,20743.0,20742.0,0.69750122]
[1673763326035,0.48107228,20743.0,20742.0,0.69750122]